{"text_format":"1","workbook":"xlsx","n_sheets":1,"sheets":["Invoice"],"not_rendered":{"charts":0,"images":0,"macros":0,"external_links":0,"defined_names":6,"comments":0,"pivot_tables":0},"unopened":[],"bounds":{"document_bytes":16777216,"sheet_cells":100000,"rows_first":2000,"rows_last":500,"rows_between":2000,"halvings":0,"cell_chars":16384,"cell_head_chars":4096},"cells_cut":0,"cells_raw":0,"read":"whole","date_system":"1900"}

{"sheet":"Invoice","index":0,"n_rows":26,"n_cols":7,"rows_kept":26,"cut":false,"hidden":false,"merged":[[1,3,1,4],[2,3,2,4],[1,5,1,6],[2,5,2,6],[1,1,1,2],[2,1,2,2],[25,1,25,4],[24,1,24,4],[3,3,3,4],[4,3,4,4],[5,3,5,4],[4,2,5,2],[4,1,5,1]]}
[null,"Company Name"]
[null,"Street Address",null,"P: Phone Number",null,"Email"]
[null,"City, State ZIP Code",null,"F: Fax Number",null,"Website"]
[null,"Bill To:",null,{"$f":"\"Phone:   \"","v":"Phone:   "},null,"Invoice #:"]
[null,"Address:",null,{"$f":"\"Fax:    \"","v":"Fax:    "},null,"Invoice Date:"]
[null,null,null,{"$f":"\"Email:   \"","v":"Email:   "}]
[null,{"$f":"\"Invoice For: \"","v":"Invoice For: "}]
[null,"Item #","Description","Qty","Unit Price","Discount","Price"]
[null,1,"book",2,23,3,{"$f":"IFERROR((D9*E9)-F9,\"\")","v":43}]
[null,null,null,null,null,null,0]
[null,null,null,null,null,null,0]
[null,null,null,null,null,null,0]
[null,null,null,null,null,null,0]
[null,null,null,null,null,null,0]
[null,null,null,null,null,null,0]
[null,null,null,null,null,null,0]
[null,null,null,null,null,null,0]
[null,null,null,null,null,null,0]
[null,null,null,null,null,null,0]
[null,null,null,null,null,null,0]
[null,null,null,null,null,"Invoice Subtotal",{"$f":"SUM(SimpleInvoice[Price])","v":43}]
[null,null,null,null,null,"Tax Rate",0.2]
[null,null,null,null,null,"Sales Tax",{"$f":"IFERROR(G21*G22,\"\")","v":8.6}]
[null,null,null,null,null,"Other"]
[null,{"$f":"\"Make all checks payable to \"&company_name&\".\"","v":"Make all checks payable to Company Name."},null,null,null,"Deposit Received",100]
[null,"Total due in <#> days. Overdue accounts subject to a service charge of <#>% per month.",null,null,null,"TOTAL",{"$f":"IFERROR((G21+G23+G24)-G25,\"\")","v":-48.4}]